bitfinex-derivatives/quotes_SOLF0:USTF0_20241217
["timestamp","ask_amount","ask_price","bid_price","bid_amount"]
[1734431716044,2.25,222.25,222.2,2.3]
[1734431716940,2.25,222.25,222.21,2.2504]
[1734431717142,10.68010809,222.29,222.21,2.2504]
[1734431718447,2.25,222.25,222.21,2.2504]
[1734431720145,2.25,222.25,222.21,7.62808725]
[1734431721551,10.68010809,222.29,222.21,5.37768725]
[1734431721752,2.25,222.25,222.21,5.37768725]
[1734431722753,2.25,222.25,222.21,7.62808725]
[1734431724151,10.68010809,222.32,222.21,5.37768725]
[1734431724352,10.68010809,222.32,222.21,16.05779534]
[1734431724550,10.68010809,222.32,222.22,3.0555]
[1734431724955,2.2494,222.32,222.26,2.2499]
[1734431725156,12.98010809,222.35,222.26,2.2499]
[1734431725554,10.68010809,222.35,222.26,2.2499]
[1734431726251,2.2495,222.3,222.25,4.55]
[1734431727261,2.2496,222.29,222.25,4.55]
[1734431728050,2.2502,222.23,222.2,2.3]
[1734431728254,10.68010809,222.29,222.2,2.3]
[1734431728457,10.68010809,222.29,222.19,2.3]
[1734431728857,2.2502,222.23,222.19,4.5506]
[1734431729561,2.2504,222.22,222.19,2.3]
[1734431730058,10.68010809,222.29,222.17,2.2508]
[1734431730356,10.68010809,222.29,222.09,10.68010809]
[1734431730357,10.68010809,222.23,222.13,4.5512]
[1734431730562,10.68010809,222.23,222.13,2.3]
[1734431730762,2.251,222.16,222.13,2.3]
[1734431731155,10.68010809,222.23,222.13,2.3]
[1734431731359,2.251,222.15,222.13,2.3]
[1734431734061,10.68010809,222.23,222.13,2.3]
[1734431734661,2.251,222.15,222.13,2.3]
[1734431734967,2.251,222.15,222.11,7.7363209]
[1734431735160,2.2511,222.14,222.11,7.7363209]
[1734431736160,10.68010809,222.2,222.07,4.6355]
[1734431736357,2.3,222.19,222.09,2.3]
[1734431737162,2.2516,222.1,222.09,2.3]
[1734431737465,2.2516,222.1,222.08,2.3]
[1734431738167,2.2518,222.07,222.03,12.93230809]
[1734431738368,10.68010809,222.14,222.04,2.3]
[1734431738957,10.68010809,222.14,222.04,7.64810231]
[1734431739159,12.98010809,222.14,222.04,7.64810231]
[1734431739467,2.252,222.05,222.04,2.3]
[1734431739656,2.252,222.05,222.02,5.4433]
[1734431739857,2.2528,221.98,221.94,2.2531]
[1734431740166,10.68010809,222.05,221.93,2.3]
[1734431740372,10.68010809,222.05,221.94,2.3]
[1734431740970,10.68010809,222.02,221.95,5.29079929]
[1734431741261,10.68010809,222.02,221.9,3.0758]
[1734431741463,10.68010809,222.02,221.9,5.3758]
[1734431742763,2.3,222.01,221.9,5.3758]
[1734431743063,10.68010809,221.99,221.9,5.3758]
[1734431743462,2.2534,221.93,221.9,5.3758]
[1734431743663,10.68010809,221.99,221.9,3.0758]
[1734431744162,2.2529,221.97,221.9,3.0758]
[1734431744361,10.68010809,221.99,221.9,3.0758]
[1734431744664,2.2536,221.9,221.87,0.90142876]
[1734431745963,2.2533,221.93,221.87,3.15522876]
[1734431746467,10.68010809,221.96,221.87,0.90142876]
[1734431746663,2.2535,221.91,221.87,0.90142876]
[1734431747361,12.98010809,221.96,221.84,2.3]
[1734431747762,2.2534,221.92,221.85,2.254]
[1734431748063,12.98010809,221.96,221.85,2.254]
[1734431748271,5.49852112,222.05,221.88,10.68010809]
[1734431748459,5.49852112,222.05,221.91,10.68010809]
[1734431748658,16.17862921,222.05,221.92,3.0361]
[1734431749359,16.17862921,222.05,221.93,2.2532]
[1734431749559,16.17862921,222.05,221.94,2.3]
[1734431749766,18.47862921,222.05,221.94,2.3]
[1734431750162,18.47862921,222.05,221.94,4.5531]
[1734431750465,10.68010809,222.08,221.94,12.98010809]
[1734431750665,2.2523,222.03,221.97,2.2528]
[1734431751561,10.68010809,222.08,221.97,2.2528]
[1734431752965,10.68010809,222.08,221.94,12.98010809]
[1734431753168,10.68010809,222.11,221.97,10.68010809]
[1734431753371,2.2519,222.07,221.97,10.68010809]
[1734431753563,10.68010809,222.08,221.97,10.68010809]
[1734431753871,10.68010809,222.08,221.98,2.2527]
[1734431754068,2.2522,222.04,221.99,2.3]
[1734431754763,2.2522,222.04,221.99,4.5526]
[1734431754969,10.68010809,222.08,221.99,2.3]
[1734431755167,2.252,222.05,221.99,2.3]
[1734431755667,10.68010809,222.08,221.99,2.3]
[1734431755972,10.68010809,222.08,222.01,2.2524]
[1734431756169,10.68010809,222.08,221.99,2.3]
[1734431757471,2.252,222.05,222.0,2.2525]
[1734431757768,10.68010809,222.08,221.99,2.3]
[1734431757975,10.68010809,222.11,222.02,2.2523]
[1734431759073,10.68010809,222.11,221.99,3.7553]
[1734431759277,2.2516,222.09,221.99,3.7553]
[1734431759473,10.68010809,222.11,222.0,10.68010809]
[1734431759679,10.68010809,222.11,221.99,3.7553]
[1734431760471,10.68010809,222.11,222.02,2.2523]
[1734431760780,248.90379,222.42,222.0,10.68010809]
[1734431760976,10.68010809,222.21,222.06,10.68010809]
[1734431761182,10.68010809,222.21,222.07,3.0344]
[1734431761372,10.68010809,222.21,222.08,2.3]
[1734431761573,10.68010809,222.21,222.11,2.2514]
[1734431761877,10.68010809,222.21,222.08,2.3]
[1734431762090,10.68010809,222.21,222.08,3.8268]
[1734431762894,2.2507,222.18,222.14,2.2511]
[1734431763095,2.2507,222.18,222.15,2.3]
[1734431763399,10.68010809,222.27,222.15,2.3]
[1734431763890,10.68010809,222.27,222.15,12.98010809]
[1734431764091,12.92990809,222.27,222.18,2.2507]
[1734431764397,12.92990809,222.27,222.15,12.98010809]
[1734431764991,12.92990809,222.27,222.22,2.2503]
[1734431765190,10.68010809,222.27,222.23,2.3]
[1734431765494,2.2499,222.26,222.23,2.3]
[1734431765696,2.3,222.33,222.23,2.3]
[1734431765991,2.3,222.37,222.23,2.3]
[1734431766298,4.4954,222.49,222.23,2.3]
[1734431766299,10.68010809,222.36,222.23,2.3]
[1734431766498,2.2491,222.34,222.26,2.2498]
[1734431766693,10.68010809,222.36,222.23,2.3]
[1734431767197,2.2492,222.33,222.25,10.68010809]
[1734431767388,2.3,222.39,222.25,10.68010809]
[1734431767593,10.68010809,222.4,222.25,10.68010809]
[1734431767790,10.68010809,222.4,222.27,2.2497]
[1734431767998,10.68010809,222.4,222.28,2.3]
[1734431768196,10.68010809,222.37,222.28,2.3]
[1734431768397,2.2493,222.32,222.29,2.3]
[1734431768695,5.35540724,222.38,222.21,10.68010809]
[1734431768696,10.68010809,222.34,222.21,10.68010809]
[1734431768897,10.68010809,222.34,222.22,2.3]
[1734431769694,2.2495,222.3,222.25,2.2499]
[1734431770995,2.2496,222.29,222.23,2.2501]
[1734431771395,6.741,222.56,222.27,10.68010809]
[1734431771595,2.2486,222.39,222.34,2.2491]
[1734431771893,5.38644029,222.43,222.34,4.5491]
[1734431772401,2.2487,222.38,222.34,2.3]
[1734431773795,10.68010809,222.39,222.29,2.3]
[1734431774498,10.68010809,222.39,222.29,4.5496]
[1734431775496,2.2491,222.35,222.29,4.5496]
[1734431775796,10.68010809,222.36,222.3,2.32]
[1734431776001,10.68010809,222.36,222.23,5.31675311]
[1734431776002,10.68010809,222.33,222.21,10.68010809]
[1734431776201,10.68010809,222.33,222.22,2.32]
[1734431776594,10.68010809,222.33,222.22,4.5703]
[1734431776992,10.68010809,222.33,222.23,2.32]
[1734431777198,2.2499,222.27,222.23,2.32]
[1734431778704,2.2496,222.3,222.25,2.25]
[1734431779104,10.68010809,222.34,222.25,2.25]
[1734431780003,2.32,222.42,222.3,2.2495]
[1734431780202,10.68010809,222.39,222.29,2.32]
[1734431780401,2.2492,222.34,222.29,2.32]
[1734431780604,2.2492,222.34,222.29,4.5696]
[1734431780808,10.68010809,222.39,222.29,2.32]
[1734431781407,2.249,222.35,222.3,2.2495]
[1734431781708,10.68010809,222.39,222.29,2.32]
[1734431782200,10.68010809,222.36,222.3,2.32]
[1734431782400,10.68010809,222.36,222.27,2.32]
[1734431782699,10.68010809,222.36,222.27,4.5697]
[1734431782902,10.68010809,222.36,222.27,2.32]
[1734431783104,2.2495,222.3,222.26,2.2499]
[1734431783303,10.68010809,222.36,222.27,2.32]
[1734431784502,2.2496,222.3,222.27,2.32]
[1734431785400,2.2494,222.32,222.27,2.32]
[1734431785603,2.32,222.37,222.27,2.32]
[1734431786000,10.68010809,222.35,222.22,5.39419138]
[1734431786302,10.68010809,222.35,222.23,2.32]
[1734431786499,2.2499,222.26,222.23,2.32]
[1734431786703,10.68010809,222.35,222.23,2.32]
[1734431787103,2.2498,222.27,222.23,4.5702]
[1734431787702,2.2498,222.27,222.24,2.2501]
[1734431788804,10.68010809,222.35,222.23,2.32]
[1734431789005,5.38644029,222.43,222.23,2.32]
[1734431789205,10.68010809,222.41,222.26,10.68010809]
[1734431789708,2.2493,222.33,222.28,2.2496]
[1734431789907,2.2493,222.33,222.29,2.32]
[1734431790100,10.68010809,222.53,222.29,2.32]
[1734431790101,298.39459,222.65,222.32,10.68010809]
[1734431790304,10.68010809,222.47,222.35,10.68010809]
[1734431790500,10.68010809,222.47,222.36,2.32]
[1734431791406,2.2483,222.43,222.37,2.2487]
[1734431791805,0.2755,222.5,222.38,10.68010809]
[1734431792104,2.2478,222.47,222.42,2.2483]
[1734431792308,0.2755,222.5,222.42,2.32]
[1734431793502,2.523,222.5,222.44,2.248]
[1734431795811,2.2476,222.49,222.44,2.248]
[1734431796008,0.2755,222.5,222.4,5.3267]
[1734431796306,0.2755,222.5,222.42,2.32]
[1734431797109,2.2482,222.43,222.42,2.32]
[1734431798915,0.2755,222.5,222.38,7.58539616]
[1734431799412,2.2484,222.42,222.38,7.58539616]
[1734431800006,2.248,222.45,222.4,2.2485]
[1734431800413,2.2481,222.44,222.39,2.2486]
[1734431800915,0.2755,222.5,222.38,7.58539616]
[1734431801107,2.3,222.52,222.38,7.58539616]
[1734431801312,4.4917,222.67,222.4,17.08110045]
[1734431801511,2.2472,222.53,222.47,2.2478]
[1734431801713,2.3,222.6,222.48,2.3]
[1734431802115,5.29822542,222.57,222.48,2.3]
[1734431802511,2.2475,222.5,222.48,2.3]
[1734431802706,5.29822542,222.57,222.48,2.3]
[1734431803805,17.08110045,222.56,222.48,2.3]
[1734431804206,2.2476,222.5,222.48,2.3]
[1734431804409,0.2986,222.54,222.48,2.3]
[1734431805917,0.2986,222.54,222.49,2.2475]
[1734431806510,2.2472,222.53,222.48,2.3]
[1734431808212,2.2472,222.53,222.48,4.5476]
[1734431808410,2.2473,222.52,222.48,4.5476]
[1734431810015,0.2986,222.54,222.46,2.3]
[1734431810210,0.2986,222.54,222.44,4.6133]
[1734431810413,0.2986,222.54,222.44,3.0626]
[1734431810612,0.2986,222.54,222.45,2.3]
[1734431811018,2.2477,222.49,222.45,2.3]
[1734431812311,2.2477,222.48,222.45,2.3]
[1734431812921,0.2986,222.54,222.44,3.0626]
[1734431813118,17.08110045,222.5,222.39,1.5316]
[1734431813316,2.3,222.49,222.35,2.3]
[1734431813513,2.3,222.49,222.35,4.549]
[1734431815521,2.2486,222.4,222.35,4.549]
[1734431815820,2.2486,222.4,222.36,5.30814003]
[1734431816022,2.2486,222.4,222.36,7.60814003]
[1734431818026,2.2483,222.43,222.38,2.2486]
[1734431818423,17.08110045,222.5,222.38,2.2486]
[1734431820226,2.2484,222.41,222.37,2.2488]
[1734431820921,2.2483,222.43,222.38,2.2487]
[1734431821326,2.2478,222.47,222.41,2.2483]
[1734431821521,2.3,222.51,222.42,2.3]
[1734431822029,0.2986,222.54,222.42,12.97443384]
[1734431823424,2.2478,222.47,222.43,2.2481]
[1734431824027,2.2473,222.52,222.48,2.2477]
[1734431824230,2.2473,222.52,222.48,4.5477]
[1734431824732,0.2986,222.54,222.48,2.3]
[1734431825429,2.2474,222.51,222.48,2.3]
[1734431826129,0.2986,222.54,222.44,1.5914]
[1734431826325,0.2986,222.54,222.45,2.3]
[1734431827232,0.2986,222.54,222.46,2.2479]
[1734431828425,0.2986,222.54,222.45,2.3]
[1734431828628,0.2986,222.54,222.45,4.548]
[1734431829129,0.2986,222.54,222.45,2.3]
[1734431829724,2.2479,222.46,222.45,2.3]
[1734431829931,19.37429744,222.53,222.35,17.07429744]
[1734431830131,19.37429744,222.53,222.37,3.1382]
[1734431830326,17.07429744,222.49,222.37,3.1382]
[1734431830539,17.07429744,222.49,222.37,5.4382]
[1734431830728,2.2486,222.39,222.37,5.4382]
[1734431831036,17.07429744,222.49,222.37,5.4382]
[1734431832535,2.3,222.48,222.37,5.4382]
[1734431835427,2.2485,222.4,222.37,5.4382]
[1734431838333,2.2486,222.39,222.37,5.4382]
[1734431838539,2.3,222.48,222.37,5.4382]
[1734431839138,17.07429744,222.45,222.3,2.3]
[1734431839337,2.3,222.44,222.3,2.3]
[1734431839734,17.07429744,222.41,222.3,2.3]
[1734431839932,17.07429744,222.41,222.3,7.79014364]
[1734431840132,2.2494,222.32,222.3,7.79014364]
[1734431840332,17.07429744,222.41,222.3,7.79014364]
[1734431840846,2.2492,222.33,222.3,7.79014364]
[1734431843350,17.07429744,222.41,222.3,2.3]
[1734431843946,2.2494,222.32,222.3,2.3]
[1734431845151,10.68958782,222.4,222.3,2.3]
[1734431845346,2.2494,222.31,222.3,2.3]
[1734431847154,2.2493,222.32,222.3,2.3]
[1734431847544,10.68958782,222.4,222.3,2.3]
[1734431847853,2.2494,222.31,222.3,2.3]
[1734431848045,10.68958782,222.37,222.23,10.68958782]
[1734431848250,10.68958782,222.37,222.24,2.3]
[1734431848451,10.68958782,222.37,222.24,7.82876452]
[1734431848652,2.2492,222.34,222.24,7.82876452]
[1734431848845,10.68958782,222.37,222.24,7.82876452]
[1734431849351,2.2497,222.29,222.24,10.07876452]
[1734431849753,2.2492,222.34,222.25,2.3]
[1734431849952,10.68958782,222.37,222.25,4.55]
[1734431851447,2.2496,222.29,222.25,4.55]
[1734431853256,10.68958782,222.37,222.25,2.3]
[1734431853651,10.68958782,222.34,222.23,12.98958782]
[1734431853855,10.68958782,222.34,222.23,2.3]
[1734431854055,10.68958782,222.34,222.21,4.4837]
[1734431854353,10.68958782,222.34,222.22,2.3]
[1734431854547,2.25,222.26,222.22,4.5503]
[1734431855956,10.68958782,222.34,222.23,2.3]
[1734431856156,10.68958782,222.31,222.23,2.3]
[1734431857654,10.68958782,222.31,222.21,4.4837]
[1734431858060,2.2503,222.23,222.21,4.4837]
[1734431858557,10.68958782,222.31,222.21,4.4837]
[1734431859955,2.2501,222.25,222.21,4.4837]
[1734431860859,10.68958782,222.31,222.21,4.4837]
[1734431860860,10.68958782,222.28,222.21,3.0313]
[1734431861057,10.68958782,222.28,222.19,2.3]
[1734431861460,10.68958782,222.28,222.18,5.33734877]
[1734431861760,10.68958782,222.28,222.18,7.63734877]
[1734431861956,10.68958782,222.28,222.18,2.3]
[1734431862357,10.68958782,222.28,222.13,10.68958782]
[1734431862358,10.68958782,222.25,222.13,10.68958782]
[1734431862662,10.68958782,222.25,222.15,2.251]
[1734431863164,2.2507,222.19,222.14,2.3]
[1734431863355,2.2507,222.19,222.16,2.2509]
[1734431863553,2.2507,222.19,222.14,2.3]
[1734431863759,10.68958782,222.25,222.14,2.3]
[1734431864059,10.68958782,222.25,222.1,3.0547]
[1734431864253,10.68958782,222.18,222.1,3.0547]
[1734431865156,2.2514,222.11,222.1,3.0547]
[1734431866252,2.2514,222.12,222.1,3.0547]
[1734431868058,2.2514,222.11,222.07,2.3]
[1734431868254,10.68958782,222.18,222.07,2.3]
[1734431868458,10.68958782,222.18,222.05,1.6045]
[1734431869262,2.2516,222.1,222.05,1.6045]
[1734431869662,2.2516,222.1,222.06,2.2519]
[1734431870363,2.2516,222.1,222.05,3.8565]
[1734431871360,16.19957611,222.18,222.05,1.6045]
[1734431871567,4.4998,222.27,222.05,1.6045]
[1734431871764,2.3,222.26,222.1,10.68958782]
[1734431871962,10.68958782,222.24,222.11,3.8925]
[1734431872163,2.2506,222.2,222.15,2.251]
[1734431872866,2.2506,222.19,222.15,2.251]
[1734431873164,2.2506,222.19,222.14,2.2511]
[1734431873367,10.68958782,222.24,222.12,1.5207]
[1734431873568,2.2504,222.21,222.12,1.5207]
[1734431874269,10.68958782,222.24,222.12,1.5207]
[1734431874472,10.68958782,222.27,222.12,12.21028782]
[1734431875468,2.2502,222.24,222.19,2.2506]
[1734431876063,2.25,222.26,222.22,2.2503]
[1734431876264,10.68958782,222.3,222.18,2.3]
[1734431876473,10.68958782,222.3,222.18,12.98958782]
[1734431877066,10.68958782,222.33,222.21,10.68958782]
[1734431877273,10.68958782,222.33,222.25,2.2499]
[1734431877274,2.2495,222.3,222.25,2.2499]
[1734431877568,10.68958782,222.33,222.26,3.798]
[1734431878473,2.2494,222.31,222.26,6.0478]
[1734431879173,10.68958782,222.33,222.26,6.0478]
[1734431879372,2.2495,222.3,222.26,6.0478]
[1734431879572,10.68958782,222.33,222.26,6.0478]
[1734431880469,2.2494,222.31,222.26,6.0478]
[1734431881176,10.68958782,222.33,222.26,3.798]
[1734431881472,10.68958782,222.33,222.26,1.498]
[1734431882466,2.2496,222.3,222.26,1.498]
[1734431882870,2.2494,222.32,222.27,2.2498]
[1734431883674,10.68958782,222.33,222.26,1.498]
[1734431884971,10.68958782,222.3,222.22,1.4836]
[1734431885173,10.68958782,222.3,222.19,5.45022992]
[1734431886070,10.68958782,222.3,222.2,3.0814]
[1734431886271,10.68958782,222.3,222.21,2.3]
[1734431887481,2.2498,222.27,222.23,2.2502]
[1734431888979,2.2498,222.27,222.21,2.3]
[1734431888980,2.2499,222.26,222.22,2.2503]
[1734431889178,10.68958782,222.3,222.2,3.0814]
[1734431889381,10.68958782,222.27,222.14,10.68958782]
[1734431889680,10.68958782,222.27,222.15,2.3]
[1734431890282,12.98958782,222.27,222.16,2.3]
[1734431890777,2.2503,222.22,222.17,2.2508]
[1734431891378,2.2504,222.21,222.17,2.3]
[1734431892082,2.2505,222.2,222.17,4.5508]
[1734431892278,12.98958782,222.27,222.12,3.1086]
[1734431892578,10.68958782,222.21,222.12,3.1086]
[1734431892983,10.68958782,222.21,222.09,2.3]
[1734431893779,2.2513,222.13,222.09,2.3]
[1734431894584,2.2513,222.12,222.09,2.3]
[1734431894883,10.68958782,222.18,222.09,2.3]
[1734431895081,2.3,222.17,222.09,2.3]
[1734431895287,2.2515,222.11,222.09,2.3]
[1734431895973,10.68958782,222.18,222.09,2.3]
[1734431896478,2.2511,222.14,222.09,2.3]
[1734431897577,10.68958782,222.21,222.09,12.98958782]
[1734431897786,10.68958782,222.24,222.09,12.98958782]
[1734431899296,2.2508,222.18,222.12,2.2512]
[1734431899587,10.68958782,222.24,222.09,12.98958782]
[1734431900383,2.2506,222.19,222.09,12.98958782]
[1734431901690,2.2506,222.19,222.14,2.251]
[1734431901990,10.68958782,222.27,222.15,10.68958782]
[1734431902191,2.3,222.3,222.2,2.2505]
[1734431902392,2.2502,222.24,222.19,2.3]
[1734431902690,10.68958782,222.29,222.19,4.5506]
[1734431902986,2.2501,222.25,222.16,1.5086]
[1734431903179,2.2501,222.25,222.2,2.2505]
[1734431903891,15.97397256,222.29,222.2,2.2505]
[1734431904084,2.2501,222.24,222.19,2.2506]
[1734431904286,15.97397256,222.29,222.17,2.3]
[1734431905090,2.25,222.25,222.2,2.2504]
[1734431905393,10.68958782,222.29,222.18,2.3]
[1734431905588,2.2497,222.28,222.24,2.2501]
[1734431905794,10.68958782,222.34,222.24,2.3]
[1734431906394,51.5,222.48,222.24,2.3]
[1734431906599,51.5,222.48,222.25,3.0738]
[1734431906600,2.3,222.41,222.25,3.0738]
[1734431906888,10.68958782,222.36,222.25,3.0738]
[1734431907097,10.68958782,222.36,222.28,2.2496]
[1734431907098,2.2492,222.33,222.28,2.2496]
[1734431908291,2.2491,222.34,222.25,3.0738]
[1734431908588,2.2491,222.34,222.29,2.3]
[1734431909895,2.2489,222.36,222.31,2.2494]
[1734431910597,10.68958782,222.39,222.29,2.3]
[1734431910796,10.68958782,222.42,222.29,2.3]
[1734431911694,10.68958782,222.42,222.3,10.68958782]
[1734431912388,2.2488,222.37,222.3,10.68958782]
[1734431912593,10.68958782,222.42,222.3,10.68958782]
[1734431913193,2.2487,222.39,222.34,2.2491]
[1734431913389,2.2487,222.39,222.34,4.5491]
[1734431913791,2.2487,222.39,222.34,2.3]
[1734431913992,2.2487,222.39,222.35,2.249]
[1734431914803,2.2485,222.4,222.35,2.249]
[1734431915096,10.68958782,222.45,222.34,2.3]
[1734431915498,10.68958782,222.45,222.38,2.2486]
[1734431915499,2.2483,222.43,222.38,2.2486]
[1734431915694,2.2483,222.43,222.39,2.3]
[1734431917904,10.68958782,222.45,222.39,2.3]
[1734431918096,2.2481,222.44,222.39,4.5486]
[1734431918298,10.68958782,222.48,222.39,2.3]
[1734431919509,2.2479,222.46,222.41,2.2484]
[1734431920709,2.2479,222.46,222.42,2.2483]
[1734431921613,2.2479,222.46,222.41,2.2484]
[1734431921817,10.68958782,222.45,222.38,2.3]
[1734431922311,2.2484,222.42,222.38,2.3]
[1734431922720,2.2485,222.41,222.38,2.3]
[1734431922907,10.68958782,222.42,222.3,10.68958782]
[1734431923112,10.68958782,222.42,222.31,2.3]
[1734431924113,10.68958782,222.42,222.32,2.2493]
[1734431924516,2.2489,222.37,222.33,2.2492]
[1734431925414,2.2489,222.37,222.33,4.5492]
[1734431925616,2.2489,222.37,222.33,2.2492]
[1734431925817,2.2489,222.37,222.33,4.5492]
[1734431926616,2.2489,222.36,222.33,4.5492]
[1734431927516,2.2488,222.37,222.33,4.5492]
[1734431929520,10.68958782,222.42,222.35,2.2489]
[1734431929521,2.2486,222.39,222.35,2.2489]
[1734431929716,10.68958782,222.45,222.33,2.3]
[1734431930018,2.3,222.48,222.34,10.68958782]
[1734431930213,10.68958782,222.45,222.33,2.3]
[1734431930408,10.68958782,222.42,222.31,2.3]
[1734431930914,2.249,222.36,222.32,2.2493]
[1734431931111,10.68958782,222.42,222.32,2.2493]
[1734431931914,2.2486,222.39,222.32,2.2493]
[1734431932120,10.68958782,222.42,222.32,2.2493]
[1734431932419,10.68958782,222.42,222.31,4.5494]
[1734431932816,0.24623,222.48,222.37,2.2488]
[1734431933024,10.68958782,222.47,222.37,2.2488]
[1734431933215,2.2483,222.42,222.37,4.5488]
[1734431934017,2.2485,222.4,222.37,2.3]
[1734431935422,2.2484,222.41,222.37,4.5488]
[1734431936421,2.2485,222.41,222.36,2.2488]
[1734431936726,2.2485,222.41,222.36,4.5488]
[1734431936915,10.68958782,222.44,222.3,10.68958782]
[1734431937119,2.54623,222.48,222.27,4.6494]
[1734431937120,10.68958782,222.38,222.27,4.6494]
[1734431937319,10.68958782,222.38,222.27,3.0744]
[1734431937721,2.2494,222.32,222.27,5.3242]
[1734431938926,2.2494,222.32,222.28,2.2497]
[1734431939724,10.68958782,222.38,222.3,2.2495]
[1734431939725,2.2491,222.34,222.3,2.2495]
[1734431941221,10.68958782,222.38,222.29,2.3]
[1734431941427,2.249,222.35,222.31,2.2494]
[1734431942726,10.68958782,222.41,222.29,2.3]
[1734431942934,2.3,222.42,222.3,10.68958782]
[1734431943131,10.68958782,222.44,222.3,10.68958782]
[1734431943332,10.68958782,222.44,222.4,2.2484]
[1734431943333,2.2481,222.44,222.4,2.2484]
[1734431943727,2.2481,222.44,222.38,2.3]
[1734431943928,10.68958782,222.47,222.38,2.3]
[1734431945229,2.2481,222.45,222.38,2.3]
[1734431945429,10.68958782,222.47,222.38,2.3]
[1734431945933,2.248,222.45,222.39,2.2486]
[1734431946127,0.24623,222.48,222.39,2.2486]
[1734431946727,0.24623,222.48,222.41,2.2484]
[1734431947129,2.2479,222.46,222.38,2.3]
[1734431948333,2.2479,222.46,222.41,2.2483]
[1734431948530,2.2479,222.46,222.38,2.3]
[1734431949034,0.24623,222.48,222.45,2.248]
[1734431949237,0.24623,222.48,222.46,2.3]
[1734431950835,0.24623,222.48,222.47,2.2478]
[1734431951232,10.68958782,222.57,222.47,2.2478]
[1734431951435,2.2473,222.53,222.49,2.2476]
[1734431951636,2.2473,222.53,222.46,2.3]
[1734431952130,12.96958782,222.59,222.46,2.3]
[1734431952538,10.68958782,222.56,222.47,2.28]
[1734431952836,10.68958782,222.53,222.47,2.28]
[1734431953237,2.2477,222.48,222.47,2.28]
[1734431953437,10.68958782,222.53,222.39,10.68958782]
[1734431953635,10.68958782,222.53,222.4,2.28]
[1734431953840,2.248,222.45,222.4,4.5285]
[1734431954238,2.248,222.45,222.4,2.28]
[1734431954439,10.68958782,222.5,222.41,2.2483]
[1734431954632,2.2479,222.46,222.41,2.2483]
[1734431955139,2.2479,222.46,222.42,2.2482]
[1734431955340,2.2478,222.48,222.4,2.28]
[1734431955737,10.68958782,222.53,222.39,10.68958782]
[1734431955939,2.2482,222.43,222.4,2.28]
[1734431956137,2.2482,222.43,222.37,5.31281197]
[1734431956337,10.68958782,222.47,222.37,7.56161197]
[1734431956537,10.68958782,222.47,222.36,3.0133]
[1734431956734,10.68958782,222.47,222.37,2.28]
[1734431957344,2.28,222.49,222.38,2.28]
[1734431957544,2.2483,222.42,222.38,2.28]
[1734431958141,10.68958782,222.47,222.38,2.28]
[1734431958343,2.2484,222.41,222.38,2.28]
[1734431958741,12.96958782,222.49,222.38,2.28]
[1734431960042,2.2482,222.43,222.38,4.5286]
[1734431960239,2.2482,222.43,222.38,2.28]
[1734431960444,10.68958782,222.53,222.39,10.68958782]
[1734431960743,2.2478,222.48,222.43,2.2481]
[1734431960939,2.2478,222.48,222.44,2.28]
[1734431961138,10.68958782,222.53,222.44,2.28]
[1734431961343,10.68958782,222.53,222.36,13.70288782]
[1734431961548,10.68958782,222.49,222.37,2.28]
[1734431962046,2.2483,222.42,222.38,2.2486]
[1734431962845,10.68958782,222.46,222.37,2.28]
[1734431963246,2.2483,222.42,222.37,4.5287]
[1734431965049,2.2484,222.41,222.37,4.5287]
[1734431965750,2.2483,222.43,222.39,2.2485]
[1734431966352,2.2483,222.42,222.39,2.2485]
[1734431967350,2.2485,222.4,222.37,2.28]